{"text_format":"1","workbook":"xlsx","n_sheets":2,"sheets":["お客様記入シート(2成分系) ","★記入例★"],"not_rendered":{"charts":0,"images":55,"macros":1,"external_links":0,"defined_names":2,"comments":2,"pivot_tables":0},"unopened":[],"bounds":{"document_bytes":16777216,"sheet_cells":100000,"rows_first":2000,"rows_last":500,"rows_between":2000,"halvings":0,"cell_chars":16384,"cell_head_chars":4096},"cells_cut":0,"cells_raw":0,"read":"whole","date_system":"1900"}

{"sheet":"お客様記入シート(2成分系) ","index":0,"n_rows":67,"n_cols":89,"rows_kept":67,"cut":false,"hidden":false,"merged":[[32,20,32,23],[55,15,55,44],[51,2,51,14],[52,15,52,19],[52,2,52,14],[53,2,53,14],[53,15,53,19],[44,8,46,14],[44,15,46,34],[49,30,49,43],[47,15,47,26],[60,2,60,44],[54,20,54,21],[49,22,49,28],[50,22,50,28],[52,22,52,28],[53,22,53,28],[54,22,54,28],[51,15,51,19],[49,2,49,14],[49,15,49,19],[50,2,50,14],[56,2,56,14],[56,15,56,44],[51,26,51,43],[49,20,49,21],[50,20,50,21],[51,20,51,21],[52,20,52,21],[50,15,50,19],[53,20,53,21],[50,30,50,43],[54,2,54,14],[54,15,54,19],[55,2,55,14],[18,26,18,32],[27,8,27,14],[27,15,27,44],[24,8,24,14],[24,15,24,44],[31,15,31,18],[35,8,37,14],[37,15,37,24],[37,25,37,34],[37,35,37,44],[20,15,20,18],[21,15,21,18],[22,15,22,18],[20,24,20,44],[22,20,22,23],[30,15,30,18],[30,20,30,23],[30,24,30,44],[32,15,32,18],[32,25,32,43],[34,8,34,14],[34,15,34,44],[31,8,31,14],[26,15,26,44],[23,15,23,43],[35,1,48,1],[35,2,48,7],[47,8,47,14],[35,15,35,24],[35,25,35,34],[47,27,47,44],[48,8,48,14],[48,15,48,44],[38,15,42,18],[38,19,42,20],[38,21,42,24],[38,25,42,28],[38,29,42,30],[38,31,42,34],[31,20,31,43],[38,8,43,14],[35,35,36,44],[36,15,36,24],[36,25,36,34],[43,15,43,34],[32,8,32,14],[33,8,33,14],[33,15,33,43],[17,8,17,14],[17,15,17,44],[38,35,46,44],[1,47,1,49],[2,47,2,49],[3,47,3,49],[4,1,4,44],[6,1,6,11],[6,12,6,44],[10,1,10,11],[10,12,10,27],[10,28,10,31],[10,32,10,44],[15,1,24,1],[16,15,16,44],[16,8,16,14],[26,8,26,14],[23,8,23,14],[28,15,28,25],[28,26,28,32],[28,33,28,44],[29,15,29,25],[29,26,29,32],[29,33,29,44],[7,1,7,11],[7,12,7,44],[8,1,9,11],[8,12,9,27],[8,28,8,31],[8,32,8,44],[9,28,9,31],[9,32,9,44],[11,1,12,6],[11,7,11,11],[11,12,11,44],[12,7,12,11],[12,12,12,44],[19,33,19,44],[25,1,34,1],[25,2,34,7],[18,15,18,25],[25,8,25,14],[25,15,25,44],[28,8,28,14],[29,8,29,14],[52,48,52,52],[21,8,21,14],[30,8,30,14],[22,8,22,14],[15,2,24,7],[15,8,15,14],[15,15,15,44],[18,8,18,14],[19,8,19,14],[18,33,18,44],[19,15,19,25],[19,26,19,32],[22,25,22,43],[20,8,20,14],[20,20,20,23],[21,20,21,43]]}
[]
[null,null,null,null,null,null,null,null,null,null,null,null,null,null,null,null,null,null,null,null,null,null,null,null,null,null,null,null,null,null,null,null,null,null,null,null,null,null,null,null,null,null,null,null,"第1分析センター 分析1課",null,{"$f":"#REF!","v":{"$error":"#REF!"}},{"$f":"#REF!","v":{"$error":"#REF!"}}]
[null,null,null,null,null,null,null,null,null,null,null,null,null,null,null,null,null,null,null,null,null,null,null,null,null,null,null,null,null,null,null,null,null,null,null,null,null,null,null,null,null,null,null,null,"〒739-0622 広島県大竹市晴海2丁目10番22号",null,{"$f":"#REF!","v":{"$error":"#REF!"}},{"$f":"#REF!","v":{"$error":"#REF!"}}]
[null,null,null,null,null,null,null,null,null,null,null,null,null,null,null,null,null,null,null,null,null,null,null,null,null,null,null,null,null,null,null,null,null,null,null,null,null,null,null,null,null,null,null,null,"TEL：(0827)59-1800　FAX：(0827)59-1805",null,{"$f":"#REF!","v":{"$error":"#REF!"}},{"$f":"#REF!","v":{"$error":"#REF!"}},null,null,"(mg/kg)",null,null,"(torr)"]
[null,"エブリオメーターによる気液平衡測定(2成分系)依頼書　お客様入力シート",null,null,null,null,null,null,null,null,null,null,null,null,null,null,null,null,null,null,null,null,null,null,null,null,null,null,null,null,null,null,null,null,null,null,null,null,null,null,null,null,null,null,null,null,null,null,null,null,"(wt %)",null,null,"(kPa)"]
[null,"■お客様情報",null,null,null,null,null,null,null,null,null,null,null,null,null,null,null,null,null,null,null,null,null,null,null,null,null,null,null,null,null,null,null,null,null,null,null,null,null,null,null,null,null,null,null,null,null,null,null,null,"(mol %)"]
[null,"貴社名"]
[null,"部署名"]
[null,"お名前",null,null,null,null,null,null,null,null,null,null,null,null,null,null,null,null,null,null,null,null,null,null,null,null,null,null,"電話番号"]
[null,null,null,null,null,null,null,null,null,null,null,null,null,null,null,null,null,null,null,null,null,null,null,null,null,null,null,null,"FAX番号"]
[null,"ふりがな",null,null,null,null,null,null,null,null,null,null,null,null,null,null,null,null,null,null,null,null,null,null,null,null,null,null,"E-mail"]
[null,"所属先住所",null,null,null,null,null,"郵便番号"]
[null,null,null,null,null,null,null,"住所"]
[]
[null,"■気液平衡測定に関する情報　　　　※わかる範囲で出来るだけ具体的にご記入ください。"]
[null,1,"低沸点成分",null,null,null,null,null,"成分名",null,null,null,null,null,null,null,null,null,null,null,null,null,null,null,null,null,null,null,null,null,null,null,null,null,null,null,null,null,null,null,null,null,null,null,null,null,null,null,null,null,null,{"$f":"C16","v":"低沸点成分"},{"$f":"P16","v":0}]
[null,null,null,null,null,null,null,null,"CAS番号"]
[null,null,null,null,null,null,null,null,"化合物の種類"]
[null,null,null,null,null,null,null,null,"融点(℃)",null,null,null,null,null,null,null,null,null,null,null,null,null,null,null,null,null,"分子量(g/mol)",null,null,null,null,null,null,null,null,null,null,null,null,null,null,null,null,null,null,null,null,null,null,null,null,{"$f":"C26","v":"高沸点成分"},{"$f":"P26","v":0}]
[null,null,null,null,null,null,null,null,"沸点(℃)",null,null,null,null,null,null,null,null,null,null,null,null,null,null,null,null,null,"密度(g/cm3)"]
[null,null,null,null,null,null,null,null,"MSDSの有無",null,null,null,null,null,null,null,null,null,null,"・"]
[null,null,null,null,null,null,null,null,"安定性　※1",null,null,null,null,null,null,null,null,null,null,"（","エブリオメーターでは安定な物質のみ測定可能　不安定な物質は測定できません",null,null,null,null,null,null,null,null,null,null,null,null,null,null,null,null,null,null,null,null,null,null,null,"）",null,null,null,null,null,null,null,null,null,null,null,null,null,null,null,null,null,null,null,null,null,null,null,null,null,null,null,null,null,null,null,null,44.05]
[null,null,null,null,null,null,null,null,"毒性　※1",null,null,null,null,null,null,null,null,null,null,"・",null,null,null,null,"（",null,null,null,null,null,null,null,null,null,null,null,null,null,null,null,null,null,null,null,"）",null,"指定なし","劇物","毒物",null,null,null,null,null,null,null,null,null,null,null,null,null,null,null,null,null,null,null,null,null,null,null,null,null,null,null,null,0.78800000000000003]
[null,null,null,null,null,null,null,null,"毒劇物の指定",null,null,null,null,null,null,null,null,null,null,"・",null,null,null,null,"・",null,null,null,null,null,null,null,null,null,null,null,null,null,null,null,null,null,null,null,null,null,false,false,false]
[null,null,null,null,null,null,null,null,"その他",null,null,null,null,null,null,null,null,null,null,null,null,null,null,null,null,null,null,null,null,null,null,null,null,null,null,null,null,null,null,null,null,null,null,null,null,null,null,null,null,null,null,null,null,null,null,null,null,null,null,null,null,null,null,null,null,null,null,null,null,null,null,null,null,null,null,null,null,null,null,null,null,null,null,null,null,null,null,null,"）"]
[null,2,"高沸点成分",null,null,null,null,null,"成分名",null,null,null,null,null,null,null,null,null,null,null,null,null,null,null,null,null,null,null,null,null,null,null,null,null,null,null,null,null,null,null,null,null,null,null,null,null,null,null,null,null,null,null,null,null,null,null,null,null,null,null,null,null,null,null,null,null,null,null,null,null,null,null,null,null,null,null,null,null,null,null,null,null,null,null,null,null,null,null,"）"]
[null,null,null,null,null,null,null,null,"CAS番号"]
[null,null,null,null,null,null,null,null,"化合物の種類"]
[null,null,null,null,null,null,null,null,"融点(℃)",null,null,null,null,null,null,null,null,null,null,null,null,null,null,null,null,null,"分子量(g/mol)",null,null,null,null,null,null,null,null,null,null,null,null,null,null,null,null,null,null,null,null,null,null,null,null,{"$f":"C36","v":"測定条件\n※2"},{"$f":"P36","v":"低沸点成分"}]
[null,null,null,null,null,null,null,null,"沸点(℃)",null,null,null,null,null,null,null,null,null,null,null,null,null,null,null,null,null,"密度(g/cm3)"]
[null,null,null,null,null,null,null,null,"MSDSの有無",null,null,null,null,null,null,null,null,null,null,"・"]
[null,null,null,null,null,null,null,null,"安定性　※1",null,null,null,null,null,null,null,null,null,null,"（","エブリオメーターでは安定な物質のみ測定可能　不安定な物質は測定できません",null,null,null,null,null,null,null,null,null,null,null,null,null,null,null,null,null,null,null,null,null,null,null,"）"]
[null,null,null,null,null,null,null,null,"毒性　※1",null,null,null,null,null,null,null,null,null,null,"・",null,null,null,null,"（",null,null,null,null,null,null,null,null,null,null,null,null,null,null,null,null,null,null,null,"）",null,"指定なし","劇物","毒物"]
[null,null,null,null,null,null,null,null,"毒劇物の指定",null,null,null,null,null,null,null,null,null,null,null,null,null,null,null,null,null,null,null,null,null,null,null,null,null,null,null,null,null,null,null,null,null,null,null,null,null,false,false,false]
[null,null,null,null,null,null,null,null,"その他"]
[null,3,"測定条件\n※2",null,null,null,null,null,"測定範囲\n及び\n条件数",null,null,null,null,null,null,"低沸点成分",null,null,null,null,null,null,null,null,null,"高沸点成分",null,null,null,null,null,null,null,null,null,"系内圧力　"]
[null,null,null,null,null,null,null,null,null,null,null,null,null,null,null,{"$f":"IF(P16=\"\",\"\",P16)","v":""},null,null,null,null,null,null,null,null,null,{"$f":"IF(P26=\"\",\"\",P26)","v":""}]
[null,null,null,null,null,null,null,null,null,null,null,null,null,null,null,"(mol %)",null,null,null,null,null,null,null,null,null,{"$f":"P38","v":"(mol %)"},null,null,null,null,null,null,null,null,null,"(kPa)"]
[null,null,null,null,null,null,null,null,"測定範囲",null,null,null,null,null,null,null,null,null,null,"～",null,null,null,null,null,{"$f":"IF(P39=\"\",\"\",100-P39)","v":""},null,null,null,"～",null,{"$f":"IF(V39=\"\",\"\",100-V39)","v":""}]
[]
[]
[]
[]
[null,null,null,null,null,null,null,null,null,null,null,null,null,null,null,"エブリオメーターによる気液平衡測定は最初の1条件のみ組成指定可"]
[null,null,null,null,null,null,null,null,"条件数\n(測定点数)"]
[]
[]
[null,null,null,null,null,null,null,null,"ｺﾝﾃﾞﾝｻｰ温度(℃)",null,null,null,null,null,null,null,null,null,null,null,null,null,null,null,null,null,null,"※凝固点が低い物質の場合、凝固点以上に設定する必要があります。"]
[null,null,null,null,null,null,null,null,"その他"]
[null,4,"2層分離の有無",null,null,null,null,null,null,null,null,null,null,null,null,null,null,null,null,null,null,null,null,null,null,null,null,null,null,"(","エブリオメーターでは2層分離する系は測定できません",null,null,null,null,null,null,null,null,null,null,null,null,null,"）"]
[null,5,"当社への分析依頼",null,null,null,null,null,null,null,null,null,null,null,null,null,null,null,null,null,"・",null,null,null,null,null,null,null,null,"(",null,null,null,null,null,null,null,null,null,null,null,null,null,null,"）"]
[null,6,"分析方法",null,null,null,null,null,null,null,null,null,null,null,null,null,null,null,null,null,"・",null,null,null,null,"(",null,null,null,null,null,null,null,null,null,null,null,null,null,null,null,null,null,null,"）"]
[null,7,"GC分析条件開示の有無　※3",null,null,null,null,null,null,null,null,null,null,null,null,null,null,null,null,null,"・",null,null,null,null,null,null,null,null,null,null,null,null,null,null,null,null,null,null,null,null,null,null,null,null,null,null,null,"GC/FID",null,null,null,null,"・"]
[null,8,"原料提供の有無　※4",null,null,null,null,null,null,null,null,null,null,null,null,null,null,null,null,null,"・"]
[null,9,"測定終了後の釜残液の返却",null,null,null,null,null,null,null,null,null,null,null,null,null,null,null,null,null,"・"]
[null,10,"ご希望納期　※5"]
[null,11,"その他特記事項"]
[null,"■ 注意事項"]
[null,null,"※1　分解や異常反応が認められた場合及び、作業員の安全を確保できないと判断される場合は測定を中断します。"]
[null,null,"※2　エブリオメーターによる気液平衡測定は原則、1日4条件実施で対応させて頂きます。(測定時間及び装置洗浄時間を含む)"]
[null,null,"※3　開示して頂けない場合はGC条件検討費が必要になります。"]
[null,null,"※4　原液の必要量について、1条件あたり2成分合計で約30mL、10条件測定した場合、2成分合計で約300mL必要です。"]
[null,null,"※5　納期は2成分系10条件測定を実施した場合、通常5営業日となります。お急ぎの場合は別途ご相談させていただきます。"]
[null,null,"※　　測定範囲は50mmHg(6.66kPa)～大気圧間で、沸点が40℃～150℃である物質のみ可能　融点は0℃未満の成分"]
[null,null,"※　  測定中に問題が発生した場合は速やかにご連絡致します。"]
[null,null,"※　  重合、分解、異常反応が認められた場合は測定を中止します。"]
[null,null,"※　  重合等による装置破損が発生した場合は別途料金が発生します。"]

{"sheet":"★記入例★","index":1,"n_rows":67,"n_cols":89,"rows_kept":67,"cut":false,"hidden":false,"merged":[[56,2,56,14],[56,15,56,44],[60,2,60,44],[23,15,23,18],[23,20,23,23],[23,25,23,43],[54,2,54,14],[54,15,54,19],[54,20,54,21],[54,22,54,28],[55,2,55,14],[55,15,55,44],[52,2,52,14],[52,15,52,19],[52,20,52,21],[52,22,52,28],[48,8,48,14],[48,15,48,44],[49,2,49,14],[49,15,49,19],[49,20,49,21],[49,22,49,28],[49,30,49,43],[38,35,46,44],[52,48,52,52],[53,2,53,14],[53,15,53,19],[53,20,53,21],[53,22,53,28],[50,2,50,14],[50,15,50,19],[50,20,50,21],[50,22,50,28],[50,30,50,43],[51,2,51,14],[51,15,51,19],[51,20,51,21],[51,26,51,43],[38,15,42,18],[38,19,42,20],[38,21,42,24],[38,25,42,28],[38,29,42,30],[38,31,42,34],[43,15,43,34],[34,8,34,14],[34,15,34,44],[35,1,48,1],[35,2,48,7],[35,8,37,14],[35,15,35,24],[35,25,35,34],[35,35,36,44],[36,15,36,24],[36,25,36,34],[25,1,34,1],[25,2,34,7],[44,8,46,14],[44,15,46,34],[47,8,47,14],[47,15,47,26],[47,27,47,44],[37,15,37,24],[37,25,37,34],[37,35,37,44],[38,8,43,14],[32,8,32,14],[32,15,32,18],[32,20,32,23],[32,25,32,43],[33,8,33,14],[33,15,33,43],[30,8,30,14],[30,15,30,18],[30,20,30,23],[30,24,30,44],[31,8,31,14],[31,15,31,18],[31,20,31,43],[20,24,20,44],[21,8,21,14],[21,15,21,18],[21,20,21,43],[28,8,28,14],[28,15,28,25],[28,26,28,32],[28,33,28,44],[29,8,29,14],[29,15,29,25],[29,26,29,32],[29,33,29,44],[24,8,24,14],[24,15,24,44],[25,8,25,14],[25,15,25,44],[26,8,26,14],[26,15,26,44],[27,8,27,14],[27,15,27,44],[18,26,18,32],[18,33,18,44],[19,8,19,14],[19,15,19,25],[19,26,19,32],[19,33,19,44],[15,1,24,1],[15,2,24,7],[15,8,15,14],[15,15,15,44],[16,8,16,14],[16,15,16,44],[17,8,17,14],[17,15,17,44],[18,8,18,14],[18,15,18,25],[22,8,22,14],[22,15,22,18],[22,20,22,23],[22,25,22,43],[23,8,23,14],[20,8,20,14],[20,15,20,18],[20,20,20,23],[10,1,10,11],[10,12,10,27],[10,28,10,31],[10,32,10,44],[11,1,12,6],[11,7,11,11],[11,12,11,44],[12,7,12,11],[12,12,12,44],[7,1,7,11],[7,12,7,44],[8,1,9,11],[8,12,9,27],[8,28,8,31],[8,32,8,44],[9,28,9,31],[9,32,9,44],[1,47,1,49],[2,47,2,49],[3,47,3,49],[4,1,4,44],[6,1,6,11],[6,12,6,44]]}
[]
[null,null,null,null,null,null,null,null,null,null,null,null,null,null,null,null,null,null,null,null,null,null,null,null,null,null,null,null,null,null,null,null,null,null,null,null,null,null,null,null,null,null,null,null,"第1分析センター 分析1課",null,{"$f":"#REF!","v":{"$error":"#REF!"}},{"$f":"#REF!","v":{"$error":"#REF!"}}]
[null,null,null,null,null,null,null,null,null,null,null,null,null,null,null,null,null,null,null,null,null,null,null,null,null,null,null,null,null,null,null,null,null,null,null,null,null,null,null,null,null,null,null,null,"〒739-0622 広島県大竹市晴海2丁目10番22号",null,{"$f":"#REF!","v":{"$error":"#REF!"}},{"$f":"#REF!","v":{"$error":"#REF!"}}]
[null,null,null,null,null,null,null,null,null,null,null,null,null,null,null,null,null,null,null,null,null,null,null,null,null,null,null,null,null,null,null,null,null,null,null,null,null,null,null,null,null,null,null,null,"TEL：(0827)59-1800　FAX：(0827)59-1805",null,{"$f":"#REF!","v":{"$error":"#REF!"}},{"$f":"#REF!","v":{"$error":"#REF!"}},null,null,"(mg/kg)",null,null,"(torr)"]
[null,"エブリオメーターによる気液平衡測定(2成分系)依頼書　お客様入力シート",null,null,null,null,null,null,null,null,null,null,null,null,null,null,null,null,null,null,null,null,null,null,null,null,null,null,null,null,null,null,null,null,null,null,null,null,null,null,null,null,null,null,null,null,null,null,null,null,"(wt %)",null,null,"(kPa)"]
[null,"■お客様情報",null,null,null,null,null,null,null,null,null,null,null,null,null,null,null,null,null,null,null,null,null,null,null,null,null,null,null,null,null,null,null,null,null,null,null,null,null,null,null,null,null,null,null,null,null,null,null,null,"(mol %)"]
[null,"貴社名",null,null,null,null,null,null,null,null,null,null,"株式会社アサヒテクノリサーチ"]
[null,"部署名",null,null,null,null,null,null,null,null,null,null,"第1分析センター分析1課"]
[null,"お名前",null,null,null,null,null,null,null,null,null,null,"旭　太郎",null,null,null,null,null,null,null,null,null,null,null,null,null,null,null,"電話番号",null,null,null,"0827-59-1800"]
[null,null,null,null,null,null,null,null,null,null,null,null,null,null,null,null,null,null,null,null,null,null,null,null,null,null,null,null,"FAX番号",null,null,null,"0827-59-1805"]
[null,"ふりがな",null,null,null,null,null,null,null,null,null,null,"あさひ　たろう",null,null,null,null,null,null,null,null,null,null,null,null,null,null,null,"E-mail",null,null,null,"○○○△△@.□□□.jp"]
[null,"所属先住所",null,null,null,null,null,"郵便番号",null,null,null,null,"739-0622"]
[null,null,null,null,null,null,null,"住所",null,null,null,null,"広島県大竹市晴海2-10-22"]
[]
[null,"■気液平衡測定に関する情報　　　　※わかる範囲で出来るだけ具体的にご記入ください。"]
[null,1,"低沸点成分",null,null,null,null,null,"成分名",null,null,null,null,null,null,"成分A",null,null,null,null,null,null,null,null,null,null,null,null,null,null,null,null,null,null,null,null,null,null,null,null,null,null,null,null,null,null,null,null,null,null,null,{"$f":"C16","v":"低沸点成分"},{"$f":"P16","v":"成分A"}]
[null,null,null,null,null,null,null,null,"CAS番号",null,null,null,null,null,null,"1111-1111"]
[null,null,null,null,null,null,null,null,"化合物の種類",null,null,null,null,null,null,"有機塩素化合物"]
[null,null,null,null,null,null,null,null,"融点(℃)",null,null,null,null,null,null,-50,null,null,null,null,null,null,null,null,null,null,"分子量(g/mol)",null,null,null,null,null,null,100,null,null,null,null,null,null,null,null,null,null,null,null,null,null,null,null,null,{"$f":"C26","v":"高沸点成分"},{"$f":"P26","v":"成分B"}]
[null,null,null,null,null,null,null,null,"沸点(℃)",null,null,null,null,null,null,100,null,null,null,null,null,null,null,null,null,null,"密度(g/cm3)",null,null,null,null,null,null,1.28]
[null,null,null,null,null,null,null,null,"MSDSの有無",null,null,null,null,null,null,null,null,null,null,"・"]
[null,null,null,null,null,null,null,null,"安定性　※1",null,null,null,null,null,null,null,null,null,null,"（","エブリオメーターでは安定な物質のみ測定可能　不安定な物質は測定できません",null,null,null,null,null,null,null,null,null,null,null,null,null,null,null,null,null,null,null,null,null,null,null,"）",null,null,null,null,null,null,null,null,null,null,null,null,null,null,null,null,null,null,null,null,null,null,null,null,null,null,null,null,null,null,null,null,44.05]
[null,null,null,null,null,null,null,null,"毒性　※1",null,null,null,null,null,null,null,null,null,null,"・",null,null,null,null,"（","通常の試薬と同じ取扱",null,null,null,null,null,null,null,null,null,null,null,null,null,null,null,null,null,null,"）",null,"指定なし","劇物","毒物",null,null,null,null,null,null,null,null,null,null,null,null,null,null,null,null,null,null,null,null,null,null,null,null,null,null,null,null,0.78800000000000003]
[null,null,null,null,null,null,null,null,"毒劇物の指定",null,null,null,null,null,null,null,null,null,null,"・",null,null,null,null,"（",null,null,null,null,null,null,null,null,null,null,null,null,null,null,null,null,null,null,null,"）",null,true,false,false]
[null,null,null,null,null,null,null,null,"その他",null,null,null,null,null,null,null,null,null,null,null,null,null,null,null,null,null,null,null,null,null,null,null,null,null,null,null,null,null,null,null,null,null,null,null,null,null,null,null,null,null,null,null,null,null,null,null,null,null,null,null,null,null,null,null,null,null,null,null,null,null,null,null,null,null,null,null,null,null,null,null,null,null,null,null,null,null,null,null,"）"]
[null,2,"高沸点成分",null,null,null,null,null,"成分名",null,null,null,null,null,null,"成分B",null,null,null,null,null,null,null,null,null,null,null,null,null,null,null,null,null,null,null,null,null,null,null,null,null,null,null,null,null,null,null,null,null,null,null,null,null,null,null,null,null,null,null,null,null,null,null,null,null,null,null,null,null,null,null,null,null,null,null,null,null,null,null,null,null,null,null,null,null,null,null,null,"）"]
[null,null,null,null,null,null,null,null,"CAS番号",null,null,null,null,null,null,"2222-2222"]
[null,null,null,null,null,null,null,null,"化合物の種類",null,null,null,null,null,null,"芳香族炭化水素"]
[null,null,null,null,null,null,null,null,"融点(℃)",null,null,null,null,null,null,10,null,null,null,null,null,null,null,null,null,null,"分子量(g/mol)",null,null,null,null,null,null,200,null,null,null,null,null,null,null,null,null,null,null,null,null,null,null,null,null,{"$f":"C36","v":"測定条件\n※2"},{"$f":"P36","v":"低沸点成分"}]
[null,null,null,null,null,null,null,null,"沸点(℃)",null,null,null,null,null,null,190,null,null,null,null,null,null,null,null,null,null,"密度(g/cm3)",null,null,null,null,null,null,1.01]
[null,null,null,null,null,null,null,null,"MSDSの有無",null,null,null,null,null,null,null,null,null,null,"・"]
[null,null,null,null,null,null,null,null,"安定性　※1",null,null,null,null,null,null,null,null,null,null,"（","エブリオメーターでは安定な物質のみ測定可能　不安定な物質は測定できません",null,null,null,null,null,null,null,null,null,null,null,null,null,null,null,null,null,null,null,null,null,null,null,"）"]
[null,null,null,null,null,null,null,null,"毒性　※1",null,null,null,null,null,null,null,null,null,null,"・",null,null,null,null,"（","吸入すると有害（蒸気）、皮膚刺激、強い眼刺激、発がんのおそれの",null,null,null,null,null,null,null,null,null,null,null,null,null,null,null,null,null,null,"）",null,"指定なし","劇物","毒物"]
[null,null,null,null,null,null,null,null,"毒劇物の指定",null,null,null,null,null,null,null,null,null,null,null,null,null,null,null,null,null,null,null,null,null,null,null,null,null,null,null,null,null,null,null,null,null,null,null,null,null,false,true,false]
[null,null,null,null,null,null,null,null,"その他"]
[null,3,"測定条件\n※2",null,null,null,null,null,"測定範囲\n及び\n条件数",null,null,null,null,null,null,"低沸点成分",null,null,null,null,null,null,null,null,null,"高沸点成分",null,null,null,null,null,null,null,null,null,"系内圧力　"]
[null,null,null,null,null,null,null,null,null,null,null,null,null,null,null,{"$f":"IF(P16=\"\",\"\",P16)","v":"成分A"},null,null,null,null,null,null,null,null,null,{"$f":"IF(P26=\"\",\"\",P26)","v":"成分B"}]
[null,null,null,null,null,null,null,null,null,null,null,null,null,null,null,"(mol %)",null,null,null,null,null,null,null,null,null,{"$f":"P38","v":"(mol %)"},null,null,null,null,null,null,null,null,null,"(kPa)"]
[null,null,null,null,null,null,null,null,"測定範囲",null,null,null,null,null,null,1,null,null,null,"～",null,99,null,null,null,{"$f":"IF(P39=\"\",\"\",100-P39)","v":99},null,null,null,"～",null,{"$f":"IF(V39=\"\",\"\",100-V39)","v":1},null,null,null,101.3]
[]
[]
[]
[]
[null,null,null,null,null,null,null,null,null,null,null,null,null,null,null,"エブリオメーターによる気液平衡測定は最初の1条件のみ組成指定可"]
[null,null,null,null,null,null,null,null,"条件数\n(測定点数)",null,null,null,null,null,null,8]
[]
[]
[null,null,null,null,null,null,null,null,"ｺﾝﾃﾞﾝｻｰ温度(℃)",null,null,null,null,null,null,null,null,null,null,null,null,null,null,null,null,null,null,"※凝固点が低い物質の場合、凝固点以上に設定する必要があります。"]
[null,null,null,null,null,null,null,null,"その他"]
[null,4,"2層分離の有無",null,null,null,null,null,null,null,null,null,null,null,null,null,null,null,null,null,null,null,null,null,null,null,null,null,null,"(","エブリオメーターでは2層分離する系は測定できません",null,null,null,null,null,null,null,null,null,null,null,null,null,"）"]
[null,5,"当社への分析依頼",null,null,null,null,null,null,null,null,null,null,null,null,null,null,null,null,null,"・",null,null,null,null,null,null,null,null,"(",null,null,null,null,null,null,null,null,null,null,null,null,null,null,"）"]
[null,6,"分析方法",null,null,null,null,null,null,null,null,null,null,null,null,null,null,null,null,null,"・",null,null,null,null,"(",null,null,null,null,null,null,null,null,null,null,null,null,null,null,null,null,null,null,"）"]
[null,7,"GC分析条件開示の有無　※3",null,null,null,null,null,null,null,null,null,null,null,null,null,null,null,null,null,"・",null,null,null,null,null,null,null,null,null,null,null,null,null,null,null,null,null,null,null,null,null,null,null,null,null,null,null,"GC/FID",null,null,null,null,"・"]
[null,8,"原料提供の有無　※4",null,null,null,null,null,null,null,null,null,null,null,null,null,null,null,null,null,"・"]
[null,9,"測定終了後の釜残液の返却",null,null,null,null,null,null,null,null,null,null,null,null,null,null,null,null,null,"・"]
[null,10,"ご希望納期　※5",null,null,null,null,null,null,null,null,null,null,null,null,"依頼後2週間以内"]
[null,11,"その他特記事項",null,null,null,null,null,null,null,null,null,null,null,null,"速報希望"]
[null,"■ 注意事項"]
[null,null,"※1　分解や異常反応が認められた場合及び、作業員の安全を確保できないと判断される場合は測定を中断します。"]
[null,null,"※2　エブリオメーターによる気液平衡測定は原則、1日4条件実施で対応させて頂きます。(測定時間及び装置洗浄時間を含む)"]
[null,null,"※3　開示して頂けない場合はGC条件検討費が必要になります。"]
[null,null,"※4　原液の必要量について、1条件あたり2成分合計で約30mL、10条件測定した場合、2成分合計で約300mL必要です。"]
[null,null,"※5　納期は2成分系10条件測定を実施した場合、通常5営業日となります。お急ぎの場合は別途ご相談させていただきます。"]
[null,null,"※　　測定範囲は50mmHg(6.66kPa)～大気圧間で、沸点が40℃～150℃である物質のみ可能　融点は0℃未満の成分"]
[null,null,"※　  測定中に問題が発生した場合は速やかにご連絡致します。"]
[null,null,"※　  重合、分解、異常反応が認められた場合は測定を中止します。"]
[null,null,"※　  重合等による装置破損が発生した場合は別途料金が発生します。"]